[Event "Live Chess"]
[Site "Chess.com"]
[Date "2023.05.21"]
[Round "-"]
[White "mach247"]
[Black "MarkLim1"]
[Result "0-1"]
[WhiteElo "1325"]
[BlackElo "1707"]
[TimeControl "300"]
[EndTime "1:25:46 PDT"]
[Termination "MarkLim1 won by resignation"]

1. e4 {[%clk 0:04:59.1]} 1... e6 {[%clk 0:04:59.1]} 2. Nf3 {[%clk 0:04:57]} 2...
d5 {[%clk 0:04:58.3]} 3. exd5 {[%clk 0:04:56.4]} 3... exd5 {[%clk 0:04:57.6]} 4.
d4 {[%clk 0:04:48.2]} 4... Bd6 {[%clk 0:04:56.6]} 5. Bd3 {[%clk 0:04:42.4]} 5...
Nc6 {[%clk 0:04:54.9]} 6. c3 {[%clk 0:04:41]} 6... Nge7 {[%clk 0:04:53.9]} 7.
O-O {[%clk 0:04:40.1]} 7... Bg4 {[%clk 0:04:53.2]} 8. h3 {[%clk 0:04:38.2]} 8...
Bh5 {[%clk 0:04:51.5]} 9. Nbd2 {[%clk 0:04:35.4]} 9... Qd7 {[%clk 0:04:50.8]}
10. Qc2 {[%clk 0:04:32.5]} 10... O-O-O {[%clk 0:04:49.4]} 11. b4 {[%clk
0:04:29.7]} 11... Rde8 {[%clk 0:04:47.9]} 12. a4 {[%clk 0:04:26.2]} 12... f6
{[%clk 0:04:46.5]} 13. a5 {[%clk 0:04:23]} 13... g5 {[%clk 0:04:44.9]} 14. b5
{[%clk 0:04:21.7]} 14... Nb8 {[%clk 0:04:42.9]} 15. b6 {[%clk 0:04:17.1]} 15...
a6 {[%clk 0:04:41.6]} 16. bxc7 {[%clk 0:04:16.1]} 16... Qxc7 {[%clk 0:04:40.3]}
17. Bf5+ {[%clk 0:04:00.6]} 17... Nxf5 {[%clk 0:04:38.1]} 18. Qxf5+ {[%clk
0:04:00.5]} 18... Qd7 {[%clk 0:04:32.1]} 19. Qxd7+ {[%clk 0:03:22.4]} 19... Kxd7
{[%clk 0:04:30.3]} 20. c4 {[%clk 0:03:21.9]} 20... Bxf3 {[%clk 0:04:22.6]} 21.
Nxf3 {[%clk 0:03:21]} 21... dxc4 {[%clk 0:04:21.3]} 22. Ba3 {[%clk 0:03:17.7]}
22... Nc6 {[%clk 0:04:10.2]} 23. Bxd6 {[%clk 0:03:16.9]} 23... Kxd6 {[%clk
0:04:09.4]} 24. Rfc1 {[%clk 0:03:11]} 24... Kd5 {[%clk 0:04:08]} 25. Rab1 {[%clk
0:03:01.8]} 25... Re7 {[%clk 0:04:06.4]} 26. Rb6 {[%clk 0:02:57.2]} 26... Rhe8
{[%clk 0:03:57.1]} 27. h4 {[%clk 0:02:52.8]} 27... gxh4 {[%clk 0:03:50.7]} 28.
Nxh4 {[%clk 0:02:50.7]} 28... Nxd4 {[%clk 0:03:34.6]} 29. Rd1 {[%clk 0:02:40.4]}
29... Re1+ {[%clk 0:03:30.9]} 30. Rxe1 {[%clk 0:02:39.9]} 30... Rxe1+ {[%clk
0:03:29.5]} 31. Kh2 {[%clk 0:02:39.6]} 31... c3 {[%clk 0:03:08.1]} 32. Rxb7
{[%clk 0:02:37.7]} 32... c2 {[%clk 0:03:07]} 33. Rd7+ {[%clk 0:02:37.4]} 33...
Kc4 {[%clk 0:03:05.8]} 34. Rc7+ {[%clk 0:02:36.9]} 34... Kd3 {[%clk 0:03:04.9]}
0-1

[Event "Live Chess"]
[Site "Chess.com"]
[Date "2023.05.21"]
[Round "-"]
[White "EPotapov05"]
[Black "blunderabit"]
[Result "0-1"]
[WhiteElo "1402"]
[BlackElo "1821"]
[TimeControl "300"]
[EndTime "1:26:05 PDT"]
[Termination "blunderabit won by resignation"]

1. Nf3 {[%clk 0:04:55.8]} 1... Nf6 {[%clk 0:04:58]} 2. d4 {[%clk 0:04:54.2]}
2... e6 {[%clk 0:04:55.2]} 3. c4 {[%clk 0:04:53.2]} 3... b6 {[%clk 0:04:52.5]}
4. a3 {[%clk 0:04:50.4]} 4... Ba6 {[%clk 0:04:44.5]} 5. e3 {[%clk 0:04:43.6]}
5... c6 {[%clk 0:04:41.5]} 6. Bd3 {[%clk 0:04:38.3]} 6... d5 {[%clk 0:04:31]} 7.
cxd5 {[%clk 0:04:36.5]} 7... Bxd3 {[%clk 0:04:26.7]} 8. Qxd3 {[%clk 0:04:36.4]}
8... exd5 {[%clk 0:04:16.1]} 9. Bd2 {[%clk 0:04:25.2]} 9... Bd6 {[%clk 0:04:12]}
10. Nc3 {[%clk 0:04:21.9]} 10... O-O {[%clk 0:04:09.2]} 11. O-O {[%clk
0:04:20.5]} 11... Re8 {[%clk 0:04:05.1]} 12. Rfe1 {[%clk 0:04:15.6]} 12... Ne4
{[%clk 0:04:03.1]} 13. Rad1 {[%clk 0:04:05.9]} 13... Nd7 {[%clk 0:03:55.1]} 14.
Bc1 {[%clk 0:04:02.7]} 14... g5 {[%clk 0:03:51.3]} 15. Nd2 {[%clk 0:04:00.7]}
15... f5 {[%clk 0:03:40.8]} 16. Ndxe4 {[%clk 0:03:53.5]} 16... fxe4 {[%clk
0:03:34.9]} 17. Qe2 {[%clk 0:03:51.6]} 17... Nf6 {[%clk 0:03:29.9]} 18. g3
{[%clk 0:03:34.3]} 18... Qd7 {[%clk 0:03:27.4]} 19. Qf1 {[%clk 0:03:32]} 19...
Rf8 {[%clk 0:03:23]} 20. Qg2 {[%clk 0:03:30]} 20... Ng4 {[%clk 0:03:10.8]} 21.
Re2 {[%clk 0:03:24.6]} 21... Rf6 {[%clk 0:03:03.9]} 22. h3 {[%clk 0:03:23.1]}
22... Nh6 {[%clk 0:03:01.3]} 23. Rf1 {[%clk 0:03:18.9]} 23... Raf8 {[%clk
0:02:59.7]} 24. Nd1 {[%clk 0:03:13.6]} 24... Nf5 {[%clk 0:02:53]} 25. Bd2 {[%clk
0:03:10]} 25... Rh6 {[%clk 0:02:42]} 26. Be1 {[%clk 0:03:00.6]} 26... Ne7 {[%clk
0:02:36.3]} 27. Kh2 {[%clk 0:02:59]} 27... Rf3 {[%clk 0:02:29.7]} 28. Bc3 {[%clk
0:02:52.4]} 28... Ng6 {[%clk 0:02:11.7]} 29. Bb4 {[%clk 0:02:30.6]} 29... c5
{[%clk 0:01:59.8]} 30. dxc5 {[%clk 0:02:26.2]} 30... bxc5 {[%clk 0:01:58.5]} 31.
Bc3 {[%clk 0:02:25.3]} 31... g4 {[%clk 0:01:56.1]} 0-1

[Event "Live Chess"]
[Site "Chess.com"]
[Date "2023.05.21"]
[Round "-"]
[White "OceanFloater"]
[Black "Tushinskiy"]
[Result "0-1"]
[WhiteElo "1024"]
[BlackElo "2188"]
[TimeControl "300"]
[EndTime "1:26:08 PDT"]
[Termination "Tushinskiy won by checkmate"]

1. e4 {[%clk 0:04:59.2]} 1... e5 {[%clk 0:04:53.2]} 2. Nf3 {[%clk 0:04:57.3]}
2... d6 {[%clk 0:04:52.3]} 3. Bc4 {[%clk 0:04:54.2]} 3... Bg4 {[%clk 0:04:49.6]}
4. h3 {[%clk 0:04:52.7]} 4... Bh5 {[%clk 0:04:48]} 5. g4 {[%clk 0:04:51.7]} 5...
Bg6 {[%clk 0:04:46.9]} 6. Nh4 {[%clk 0:04:50.9]} 6... Qxh4 {[%clk 0:04:44.9]} 7.
d3 {[%clk 0:04:46.4]} 7... Nd7 {[%clk 0:04:42.8]} 8. Nc3 {[%clk 0:04:35.9]} 8...
c6 {[%clk 0:04:41.2]} 9. a3 {[%clk 0:04:33.2]} 9... Qd8 {[%clk 0:04:39]} 10. h4
{[%clk 0:04:29.4]} 10... h5 {[%clk 0:04:37.4]} 11. g5 {[%clk 0:04:27.1]} 11...
Qc7 {[%clk 0:04:34.3]} 12. Be3 {[%clk 0:04:24.9]} 12... Ne7 {[%clk 0:04:32.7]}
13. f4 {[%clk 0:04:20.7]} 13... exf4 {[%clk 0:04:30.8]} 14. Bxf4 {[%clk
0:04:19.4]} 14... Ne5 {[%clk 0:04:29.8]} 15. Qe2 {[%clk 0:04:11.1]} 15... O-O-O
{[%clk 0:04:25.3]} 16. O-O-O {[%clk 0:04:09.4]} 16... Nxc4 {[%clk 0:04:20.7]}
17. dxc4 {[%clk 0:04:07.7]} 17... a6 {[%clk 0:04:02.2]} 18. e5 {[%clk
0:04:00.1]} 18... Nf5 {[%clk 0:03:56.7]} 19. Qe1 {[%clk 0:03:50.5]} 19... Qa5
{[%clk 0:03:41.9]} 20. exd6 {[%clk 0:03:42.8]} 20... Bxd6 {[%clk 0:03:39.3]} 21.
Bxd6 {[%clk 0:03:41.2]} 21... Nxd6 {[%clk 0:03:35]} 22. Qe2 {[%clk 0:03:32.1]}
22... Rhe8 {[%clk 0:03:33]} 23. Qf3 {[%clk 0:03:19.5]} 23... Nxc4 {[%clk
0:03:26.4]} 24. Rxd8+ {[%clk 0:03:12.6]} 24... Rxd8 {[%clk 0:03:26.3]} 25. Qh3+
{[%clk 0:03:10.9]} 25... Kb8 {[%clk 0:03:21.4]} 26. Rh2 {[%clk 0:03:05.9]} 26...
Qe5 {[%clk 0:03:15.1]} 27. Re2 {[%clk 0:03:02]} 27... Qf4+ {[%clk 0:03:09.2]}
28. Kb1 {[%clk 0:02:51.3]} 28... Bf5 {[%clk 0:03:03]} 29. Qh2 {[%clk 0:02:45]}
29... Qxh2 {[%clk 0:03:01]} 30. Rxh2 {[%clk 0:02:43.9]} 30... g6 {[%clk
0:02:58.5]} 31. Rf2 {[%clk 0:02:37.3]} 31... Ne3 {[%clk 0:02:57.3]} 32. Kc1
{[%clk 0:02:24.9]} 32... Nxc2 {[%clk 0:02:52.6]} 33. Rd2 {[%clk 0:02:20.8]}
33... Rxd2 {[%clk 0:02:50.9]} 34. Kxd2 {[%clk 0:02:20.2]} 34... Nd4 {[%clk
0:02:50.1]} 35. Ke3 {[%clk 0:02:17.6]} 35... Ne6 {[%clk 0:02:48.9]} 36. Ne2
{[%clk 0:02:12.5]} 36... Kc7 {[%clk 0:02:47.2]} 37. Nd4 {[%clk 0:02:10.6]} 37...
Nxd4 {[%clk 0:02:45.8]} 38. Kxd4 {[%clk 0:02:09.9]} 38... Kd6 {[%clk 0:02:45.7]}
39. b4 {[%clk 0:02:07.4]} 39... b6 {[%clk 0:02:43.9]} 40. a4 {[%clk 0:02:04.5]}
40... c5+ {[%clk 0:02:43.8]} 41. bxc5+ {[%clk 0:02:03]} 41... bxc5+ {[%clk
0:02:43.7]} 42. Kc4 {[%clk 0:02:02.3]} 42... Be6+ {[%clk 0:02:42.5]} 43. Kd3
{[%clk 0:01:59.6]} 43... Kd5 {[%clk 0:02:29.3]} 44. a5 {[%clk 0:01:55.6]} 44...
c4+ {[%clk 0:02:25.3]} 45. Kc3 {[%clk 0:01:53.9]} 45... Kc5 {[%clk 0:02:23.2]}
46. Kc2 {[%clk 0:01:52.3]} 46... Kb4 {[%clk 0:02:22.2]} 47. Kb2 {[%clk
0:01:51.1]} 47... Bf5 {[%clk 0:02:18.4]} 48. Ka2 {[%clk 0:01:45]} 48... Kxa5
{[%clk 0:02:16.3]} 49. Ka3 {[%clk 0:01:43.7]} 49... Kb5 {[%clk 0:02:15.5]} 50.
Kb2 {[%clk 0:01:42]} 50... Kb4 {[%clk 0:02:14.9]} 51. Kc1 {[%clk 0:01:40.8]}
51... a5 {[%clk 0:02:14.8]} 52. Kd2 {[%clk 0:01:40]} 52... a4 {[%clk 0:02:14.7]}
53. Kc1 {[%clk 0:01:39.4]} 53... a3 {[%clk 0:02:14.6]} 54. Kd2 {[%clk
0:01:37.3]} 54... a2 {[%clk 0:02:13.2]} 55. Kc1 {[%clk 0:01:36.1]} 55... a1=Q+
{[%clk 0:02:12.1]} 56. Kd2 {[%clk 0:01:34.3]} 56... Qd4+ {[%clk 0:02:11.3]} 57.
Ke1 {[%clk 0:01:31.8]} 57... Qb2 {[%clk 0:02:08.3]} 58. Kd1 {[%clk 0:01:29.2]}
58... Bd3 {[%clk 0:02:05.7]} 59. Ke1 {[%clk 0:01:24.9]} 59... Qe2# {[%clk
0:02:05.6]} 0-1

[Event "Live Chess"]
[Site "Chess.com"]
[Date "2023.05.21"]
[Round "-"]
[White "MJMykh"]
[Black "Tiltador"]
[Result "1-0"]
[WhiteElo "1101"]
[BlackElo "749"]
[TimeControl "300"]
[EndTime "1:26:29 PDT"]
[Termination "MJMykh won on time"]

1. e4 {[%clk 0:04:58.6]} 1... e5 {[%clk 0:04:58.5]} 2. Nf3 {[%clk 0:04:57.5]}
2... d6 {[%clk 0:04:56.7]} 3. h3 {[%clk 0:04:56]} 3... f6 {[%clk 0:04:55.4]} 4.
Nc3 {[%clk 0:04:54.2]} 4... Nc6 {[%clk 0:04:54.3]} 5. Bb5 {[%clk 0:04:53.1]}
5... a6 {[%clk 0:04:51.8]} 6. Bxc6+ {[%clk 0:04:52.3]} 6... bxc6 {[%clk
0:04:50]} 7. O-O {[%clk 0:04:51.8]} 7... g6 {[%clk 0:04:47]} 8. d3 {[%clk
0:04:51.2]} 8... Bg7 {[%clk 0:04:45.8]} 9. a3 {[%clk 0:04:49.7]} 9... Ne7 {[%clk
0:04:44.5]} 10. Be3 {[%clk 0:04:48.9]} 10... O-O {[%clk 0:04:42.6]} 11. d4
{[%clk 0:04:47.9]} 11... exd4 {[%clk 0:04:32.7]} 12. Bxd4 {[%clk 0:04:46.4]}
12... c5 {[%clk 0:04:26.7]} 13. Be3 {[%clk 0:04:43.2]} 13... f5 {[%clk
0:04:18.6]} 14. exf5 {[%clk 0:04:39.2]} 14... Bxf5 {[%clk 0:04:16.4]} 15. Nd5
{[%clk 0:04:38.3]} 15... Nxd5 {[%clk 0:04:11.5]} 16. Qxd5+ {[%clk 0:04:37]}
16... Kh8 {[%clk 0:04:10.4]} 17. c3 {[%clk 0:04:32.7]} 17... Qc8 {[%clk
0:03:57.3]} 18. Rac1 {[%clk 0:04:14.9]} 18... a5 {[%clk 0:03:50]} 19. Nh4 {[%clk
0:04:03.4]} 19... a4 {[%clk 0:03:42.4]} 20. Nxf5 {[%clk 0:04:01.4]} 20... Rxf5
{[%clk 0:03:33.5]} 21. Qe4 {[%clk 0:03:54.4]} 21... Rf8 {[%clk 0:03:16.9]} 22.
Qh4 {[%clk 0:03:46.4]} 22... Qf5 {[%clk 0:03:04.9]} 23. Bh6 {[%clk 0:03:32.6]}
23... Qh5 {[%clk 0:02:47.5]} 24. Bxg7+ {[%clk 0:03:27.7]} 24... Kxg7 {[%clk
0:02:43.6]} 25. Qxh5 {[%clk 0:03:26.6]} 25... gxh5 {[%clk 0:02:41.9]} 26. Rce1
{[%clk 0:03:24]} 26... h4 {[%clk 0:02:37.8]} 27. Re7+ {[%clk 0:03:21.9]} 27...
Kg8 {[%clk 0:02:31.4]} 28. Rxc7 {[%clk 0:03:20.6]} 28... h5 {[%clk 0:02:24.6]}
29. Rd7 {[%clk 0:03:16.2]} 29... Rf6 {[%clk 0:02:22.8]} 30. f3 {[%clk 0:03:12]}
30... Kf8 {[%clk 0:02:13.6]} 31. Rd1 {[%clk 0:03:10.5]} 31... Ra6 {[%clk
0:02:06.8]} 32. Kf2 {[%clk 0:03:05.5]} 32... Ke8 {[%clk 0:02:03.4]} 33. Rh7
{[%clk 0:03:00.9]} 33... Rf5 {[%clk 0:01:53]} 34. Rh6 {[%clk 0:02:57.5]} 34...
Kd7 {[%clk 0:01:40.9]} 35. g4 {[%clk 0:02:51]} 35... hxg3+ {[%clk 0:01:36.3]}
36. Kxg3 {[%clk 0:02:49.1]} 36... Rg5+ {[%clk 0:01:29.7]} 37. Kh4 {[%clk
0:02:45.6]} 37... Rf5 {[%clk 0:01:20.6]} 38. Rf1 {[%clk 0:02:39.6]} 38... Kc6
{[%clk 0:01:13.6]} 39. Rxh5 {[%clk 0:02:37.2]} 39... Rxh5+ {[%clk 0:01:09.8]}
40. Kxh5 {[%clk 0:02:36.8]} 40... Kb5 {[%clk 0:01:08.4]} 41. Kg4 {[%clk
0:02:34.7]} 41... d5 {[%clk 0:01:07.2]} 42. h4 {[%clk 0:02:33.5]} 42... Rg6+
{[%clk 0:01:05.7]} 43. Kf5 {[%clk 0:02:31.9]} 43... Rg2 {[%clk 0:01:00.9]} 44.
Rb1 {[%clk 0:02:25.3]} 44... Rh2 {[%clk 0:00:51.3]} 45. Kg5 {[%clk 0:02:22.7]}
45... Rg2+ {[%clk 0:00:49.7]} 46. Kf4 {[%clk 0:02:20.5]} 46... d4 {[%clk
0:00:47.7]} 47. cxd4 {[%clk 0:02:18.6]} 47... cxd4 {[%clk 0:00:46.6]} 48. Ke4
{[%clk 0:02:15]} 48... Rh2 {[%clk 0:00:41.6]} 49. Kxd4 {[%clk 0:02:13.6]} 49...
Rxh4+ {[%clk 0:00:40.4]} 50. Ke3 {[%clk 0:02:13.5]} 50... Rh3 {[%clk 0:00:34.8]}
51. b3 {[%clk 0:02:11.3]} 51... axb3 {[%clk 0:00:31.2]} 52. Rxb3+ {[%clk
0:02:10.4]} 52... Ka4 {[%clk 0:00:30.2]} 53. Rd3 {[%clk 0:02:09.8]} 53... Rh1
{[%clk 0:00:25.2]} 54. f4 {[%clk 0:02:07.2]} 54... Re1+ {[%clk 0:00:23.4]} 55.
Kf3 {[%clk 0:02:04]} 55... Re8 {[%clk 0:00:21.1]} 56. f5 {[%clk 0:02:02.1]}
56... Rf8 {[%clk 0:00:19.9]} 57. Kf4 {[%clk 0:02:00.8]} 57... Re8 {[%clk
0:00:17.9]} 58. Rd6 {[%clk 0:01:59.7]} 58... Rf8 {[%clk 0:00:16.1]} 59. f6
{[%clk 0:01:58.4]} 59... Kxa3 {[%clk 0:00:14.8]} 60. Kf5 {[%clk 0:01:55.5]}
60... Rf7 {[%clk 0:00:13.2]} 61. Ke6 {[%clk 0:01:53.8]} 61... Ra7 {[%clk
0:00:10.7]} 62. f7 {[%clk 0:01:51.4]} 62... Ra8 {[%clk 0:00:08.4]} 63. Ke7
{[%clk 0:01:49.4]} 63... Ra7+ {[%clk 0:00:06.9]} 64. Rd7 {[%clk 0:01:48.4]}
64... Ra8 {[%clk 0:00:04.5]} 65. Rd8 {[%clk 0:01:46.6]} 65... Ra7+ {[%clk
0:00:03]} 66. Ke8 {[%clk 0:01:45.8]} 66... Rxf7 {[%clk 0:00:01.5]} 67. Kxf7
{[%clk 0:01:44.9]} 67... Kb3 {[%clk 0:00:00.5]} 68. Rd7 {[%clk 0:01:44.2]} 1-0

[Event "Live Chess"]
[Site "Chess.com"]
[Date "2023.05.21"]
[Round "-"]
[White "Richardallis"]
[Black "OleksiyJr1"]
[Result "1-0"]
[WhiteElo "1874"]
[BlackElo "986"]
[TimeControl "300"]
[EndTime "1:26:31 PDT"]
[Termination "Richardallis won by checkmate"]

1. d4 {[%clk 0:04:56]} 1... Nf6 {[%clk 0:04:58.3]} 2. Nf3 {[%clk 0:04:55.2]}
2... c6 {[%clk 0:04:57.7]} 3. Bg5 {[%clk 0:04:54.5]} 3... d5 {[%clk 0:04:55.6]}
4. Nbd2 {[%clk 0:04:52.5]} 4... h6 {[%clk 0:04:12.6]} 5. Bxf6 {[%clk 0:04:50.6]}
5... exf6 {[%clk 0:03:59.5]} 6. e4 {[%clk 0:04:48.7]} 6... f5 {[%clk 0:03:55.6]}
7. exd5 {[%clk 0:04:44.9]} 7... Qxd5 {[%clk 0:03:52.9]} 8. Bc4 {[%clk
0:04:43.4]} 8... Qd6 {[%clk 0:03:45.2]} 9. Qe2+ {[%clk 0:04:41.7]} 9... Be6
{[%clk 0:03:42.8]} 10. O-O {[%clk 0:04:40.3]} 10... Be7 {[%clk 0:03:39.6]} 11.
Rfe1 {[%clk 0:04:38.2]} 11... Bxc4 {[%clk 0:03:36.4]} 12. Nxc4 {[%clk
0:04:36.8]} 12... Qc7 {[%clk 0:03:33.5]} 13. c3 {[%clk 0:04:32.5]} 13... b5
{[%clk 0:03:20.7]} 14. Ncd2 {[%clk 0:04:30.6]} 14... Nd7 {[%clk 0:03:17.9]} 15.
Qxe7# {[%clk 0:04:28.6]} 1-0

[Event "Live Chess"]
[Site "Chess.com"]
[Date "2023.05.21"]
[Round "-"]
[White "Dhaydon19"]
[Black "wadsy27"]
[Result "1-0"]
[WhiteElo "2695"]
[BlackElo "2568"]
[TimeControl "300"]
[EndTime "1:26:45 PDT"]
[Termination "Dhaydon19 won by resignation"]

1. d4 {[%clk 0:04:58.9]} 1... d5 {[%clk 0:04:58.1]} 2. Nf3 {[%clk 0:04:57.9]}
2... Nf6 {[%clk 0:04:57]} 3. Bf4 {[%clk 0:04:56.7]} 3... c5 {[%clk 0:04:55.8]}
4. e3 {[%clk 0:04:55.3]} 4... Nc6 {[%clk 0:04:55.1]} 5. Nbd2 {[%clk 0:04:53.7]}
5... Bg4 {[%clk 0:04:54.2]} 6. Be2 {[%clk 0:04:51.6]} 6... e6 {[%clk 0:04:52.7]}
7. O-O {[%clk 0:04:50.2]} 7... Rc8 {[%clk 0:04:52]} 8. c3 {[%clk 0:04:47.9]}
8... Bd6 {[%clk 0:04:50.7]} 9. Ne5 {[%clk 0:04:43.7]} 9... Bxe2 {[%clk
0:04:47.2]} 10. Qxe2 {[%clk 0:04:42.6]} 10... O-O {[%clk 0:04:42.8]} 11. Ndf3
{[%clk 0:04:41.4]} 11... Qc7 {[%clk 0:04:39.5]} 12. Nxc6 {[%clk 0:04:36.8]}
12... Qxc6 {[%clk 0:04:31.5]} 13. Be5 {[%clk 0:04:33]} 13... Nd7 {[%clk
0:04:22.6]} 14. Bxd6 {[%clk 0:04:31.5]} 14... Qxd6 {[%clk 0:04:21]} 15. Rad1
{[%clk 0:04:30.9]} 15... cxd4 {[%clk 0:04:05.2]} 16. Rxd4 {[%clk 0:04:27]} 16...
e5 {[%clk 0:03:40]} 17. Rd2 {[%clk 0:04:23.3]} 17... e4 {[%clk 0:03:34.1]} 18.
Nd4 {[%clk 0:04:21.9]} 18... Ne5 {[%clk 0:03:33.1]} 19. Nf5 {[%clk 0:04:20.6]}
19... Qe6 {[%clk 0:03:30.4]} 20. Ng3 {[%clk 0:04:16.3]} 20... a6 {[%clk
0:03:03.6]} 21. Rfd1 {[%clk 0:04:14.4]} 21... Nd3 {[%clk 0:03:02.5]} 22. Qf1
{[%clk 0:04:11]} 22... Qb6 {[%clk 0:02:54]} 23. Ne2 {[%clk 0:04:09.9]} 23... Rc5
{[%clk 0:02:39.9]} 24. Nf4 {[%clk 0:04:07.1]} 24... Nxf4 {[%clk 0:02:26.9]} 25.
exf4 {[%clk 0:04:05.9]} 25... Qc6 {[%clk 0:02:19.7]} 26. Qe2 {[%clk 0:04:04.2]}
26... b5 {[%clk 0:02:16.7]} 27. a3 {[%clk 0:04:03]} 27... a5 {[%clk 0:02:15.6]}
28. h3 {[%clk 0:04:02.2]} 28... Rb8 {[%clk 0:02:07.4]} 29. Rd4 {[%clk
0:04:00.8]} 29... h6 {[%clk 0:02:03.8]} 30. Qd2 {[%clk 0:03:54.6]} 30... b4
{[%clk 0:01:56.1]} 31. axb4 {[%clk 0:03:53.3]} 31... axb4 {[%clk 0:01:55.3]} 32.
Rxb4 {[%clk 0:03:51.1]} 32... Rxb4 {[%clk 0:01:52.8]} 33. cxb4 {[%clk
0:03:49.9]} 33... Rb5 {[%clk 0:01:51.2]} 34. Rc1 {[%clk 0:03:39.9]} 34... Qb7
{[%clk 0:01:49.2]} 35. Rc5 {[%clk 0:03:37.3]} 35... Rxb4 {[%clk 0:01:46.5]} 36.
Qxd5 {[%clk 0:03:30.1]} 36... Rxb2 {[%clk 0:01:35.2]} 37. Qf5 {[%clk 0:03:28]}
37... Rb1+ {[%clk 0:01:15.8]} 38. Kh2 {[%clk 0:03:26.3]} 38... Kf8 {[%clk
0:01:04.4]} 39. Rc8+ {[%clk 0:03:23.1]} 39... Ke7 {[%clk 0:01:03.6]} 40. Qe5+
{[%clk 0:03:22.2]} 40... Kd7 {[%clk 0:01:02.7]} 41. Qe8+ {[%clk 0:03:20.8]}
41... Kd6 {[%clk 0:01:02]} 42. Rd8+ {[%clk 0:03:20.5]} 42... Kc5 {[%clk
0:01:00.9]} 43. Qe5+ {[%clk 0:03:19.2]} 43... Kc4 {[%clk 0:00:58.9]} 44. Rd4+
{[%clk 0:03:17]} 44... Kb3 {[%clk 0:00:55.9]} 45. Rxe4 {[%clk 0:03:15.4]} 45...
g5 {[%clk 0:00:46.5]} 46. Re3+ {[%clk 0:03:13.1]} 46... Ka4 {[%clk 0:00:44]} 47.
Qe8+ {[%clk 0:03:08.1]} 47... Kb4 {[%clk 0:00:38.6]} 48. Re4+ {[%clk 0:03:06]}
48... Kc3 {[%clk 0:00:34.9]} 49. Qe5+ {[%clk 0:03:04.1]} 49... Kb3 {[%clk
0:00:32.3]} 50. fxg5 {[%clk 0:02:57.5]} 50... hxg5 {[%clk 0:00:31.2]} 51. Qg3+
{[%clk 0:02:54.9]} 51... Kb2 {[%clk 0:00:25.8]} 52. Re2+ {[%clk 0:02:53.6]} 1-0

[Event "Live Chess"]
[Site "Chess.com"]
[Date "2023.05.21"]
[Round "-"]
[White "jagbama"]
[Black "KeithArkell"]
[Result "0-1"]
[WhiteElo "1166"]
[BlackElo "2516"]
[TimeControl "300"]
[EndTime "1:26:55 PDT"]
[Termination "KeithArkell won by checkmate"]

1. e4 {[%clk 0:04:51.5]} 1... c6 {[%clk 0:04:59.3]} 2. Nc3 {[%clk 0:04:47.4]}
2... d5 {[%clk 0:04:58.4]} 3. exd5 {[%clk 0:04:37.2]} 3... cxd5 {[%clk
0:04:57.3]} 4. Bb5+ {[%clk 0:04:34.2]} 4... Bd7 {[%clk 0:04:56.1]} 5. Nf3 {[%clk
0:04:23.2]} 5... Bxb5 {[%clk 0:04:54.6]} 6. Nxb5 {[%clk 0:04:20.1]} 6... Nc6
{[%clk 0:04:53.7]} 7. O-O {[%clk 0:04:12.9]} 7... Nf6 {[%clk 0:04:52.1]} 8. d3
{[%clk 0:04:05]} 8... a6 {[%clk 0:04:50.8]} 9. Nbd4 {[%clk 0:03:59.8]} 9... e6
{[%clk 0:04:46.2]} 10. c3 {[%clk 0:03:54.1]} 10... Be7 {[%clk 0:04:43.5]} 11.
Ne5 {[%clk 0:03:43]} 11... Nxe5 {[%clk 0:04:41.6]} 12. Bf4 {[%clk 0:03:33.5]}
12... Nc6 {[%clk 0:04:36.9]} 13. Nxc6 {[%clk 0:03:15.7]} 13... bxc6 {[%clk
0:04:35.5]} 14. Qf3 {[%clk 0:03:15.6]} 14... O-O {[%clk 0:04:33.4]} 15. Qg3
{[%clk 0:03:12.5]} 15... Nh5 {[%clk 0:04:31.9]} 16. Qg4 {[%clk 0:03:00.8]} 16...
Nxf4 {[%clk 0:04:30.5]} 17. Qxf4 {[%clk 0:03:00.2]} 17... Qb8 {[%clk 0:04:28.1]}
18. Qg4 {[%clk 0:02:53.6]} 18... Qxb2 {[%clk 0:04:24.1]} 19. Rae1 {[%clk
0:02:52]} 19... Qxc3 {[%clk 0:04:22]} 20. Re3 {[%clk 0:02:51]} 20... Bf6 {[%clk
0:04:18.4]} 21. Rg3 {[%clk 0:02:40.4]} 21... Rab8 {[%clk 0:04:15.5]} 22. h4
{[%clk 0:02:39.2]} 22... Rb4 {[%clk 0:04:13.1]} 23. d4 {[%clk 0:02:32.4]} 23...
Rxd4 {[%clk 0:04:10.2]} 24. Qh3 {[%clk 0:02:29.7]} 24... Qd2 {[%clk 0:04:02.1]}
25. h5 {[%clk 0:02:27.9]} 25... Rh4 {[%clk 0:03:59.5]} 26. Qxh4 {[%clk
0:02:14.8]} 26... Bxh4 {[%clk 0:03:57.8]} 27. Rg4 {[%clk 0:02:13.1]} 27... Bxf2+
{[%clk 0:03:54.9]} 28. Kh1 {[%clk 0:02:05.3]} 28... Qe2 {[%clk 0:03:52.7]} 29.
Rc1 {[%clk 0:01:59]} 29... Qxg4 {[%clk 0:03:49.8]} 30. Rc3 {[%clk 0:01:50.9]}
30... Qd1+ {[%clk 0:03:47.9]} 31. Kh2 {[%clk 0:01:49.6]} 31... f5 {[%clk
0:03:45]} 32. Rf3 {[%clk 0:01:43.1]} 32... Qg1+ {[%clk 0:03:43.4]} 33. Kh3
{[%clk 0:01:41.9]} 33... Qh1# {[%clk 0:03:42.8]} 0-1

[Event "Live Chess"]
[Site "Chess.com"]
[Date "2023.05.21"]
[Round "-"]
[White "smoggyrabbit"]
[Black "Leonid_Starozhilov"]
[Result "0-1"]
[WhiteElo "1726"]
[BlackElo "2661"]
[TimeControl "300"]
[EndTime "1:26:56 PDT"]
[Termination "Leonid_Starozhilov won on time"]

1. d4 {[%clk 0:04:58.9]} 1... Nf6 {[%clk 0:04:58.5]} 2. Nf3 {[%clk 0:04:57.9]}
2... c5 {[%clk 0:04:57.9]} 3. d5 {[%clk 0:04:55.4]} 3... b5 {[%clk 0:04:57.2]}
4. b3 {[%clk 0:04:34.3]} 4... e6 {[%clk 0:04:42]} 5. c4 {[%clk 0:04:25.2]} 5...
bxc4 {[%clk 0:04:40.2]} 6. bxc4 {[%clk 0:04:23.6]} 6... exd5 {[%clk 0:04:39.8]}
7. cxd5 {[%clk 0:04:21.3]} 7... Bd6 {[%clk 0:04:39.3]} 8. Nc3 {[%clk 0:04:14.5]}
8... O-O {[%clk 0:04:39.2]} 9. e4 {[%clk 0:04:12.5]} 9... Re8 {[%clk 0:04:36.1]}
10. Bd3 {[%clk 0:04:00.6]} 10... Ba6 {[%clk 0:04:28]} 11. O-O {[%clk 0:03:56.1]}
11... c4 {[%clk 0:04:14.4]} 12. Bc2 {[%clk 0:03:47.1]} 12... Bb4 {[%clk
0:04:12.9]} 13. Bb2 {[%clk 0:02:37.8]} 13... d6 {[%clk 0:04:05.6]} 14. Re1
{[%clk 0:02:24.7]} 14... Nbd7 {[%clk 0:03:53.3]} 15. a3 {[%clk 0:02:20.2]} 15...
Bc5 {[%clk 0:03:50.3]} 16. Na4 {[%clk 0:01:14.9]} 16... Rb8 {[%clk 0:03:43.7]}
17. Nxc5 {[%clk 0:01:12]} 17... Nxc5 {[%clk 0:03:40.8]} 18. Qd4 {[%clk
0:00:19.6]} 18... Ncd7 {[%clk 0:03:26.4]} 19. Rab1 {[%clk 0:00:15.8]} 19... Qb6
{[%clk 0:03:20.7]} 20. Qxb6 {[%clk 0:00:13.3]} 20... Rxb6 {[%clk 0:03:16.3]} 21.
Bd4 {[%clk 0:00:09.7]} 21... Rxb1 {[%clk 0:03:10.9]} 22. Bxb1 {[%clk 0:00:09.6]}
22... Nc5 {[%clk 0:03:03.7]} 23. Bxc5 {[%clk 0:00:07.8]} 23... dxc5 {[%clk
0:03:01.7]} 24. Nd2 {[%clk 0:00:04.8]} 24... Nxd5 {[%clk 0:02:58]} 0-1